fUSD/lending_fUSD_20250109
["ID","MTS","AMOUNT","RATE_DAILY","PERIOD"]
[348360549,1736466637833,-500.0,9.839e-05,2]
[348360550,1736466637842,-727.76,9.839e-05,2]
[348360551,1736466637852,-1495.36,9.839e-05,2]
[348360552,1736466637862,-500.0,9.839e-05,2]
[348360553,1736466637871,-828.36,9.839e-05,2]
[348360554,1736466637881,-571.94,9.839e-05,2]
[348360555,1736466637891,-1501.41182886,9.839e-05,2]
[348360556,1736466637904,-1753.71817114,9.839e-05,2]
[348360557,1736466637913,-770.89,9.839e-05,2]
[348360558,1736466637923,-4128.35,9.839e-05,2]
[348360559,1736466637932,-1353.18,9.839e-05,2]
[348360560,1736466637941,-593.22,9.839e-05,2]
[348360561,1736466637951,-9406.36749815,9.839e-05,2]
[348360562,1736466637962,-35.99250185,9.839e-05,2]
[348360563,1736466637971,-750.2,9.839e-05,2]
[348360564,1736466637981,-500.0,9.839e-05,2]
[348360565,1736466637991,-72.58464219,9.839e-05,2]
[348360566,1736466638003,-1084.14535781,9.839e-05,2]
[348360567,1736466638013,-693.05,9.839e-05,2]
[348360568,1736466638024,-571.01,9.839e-05,2]
[348360569,1736466638034,-500.0,9.839e-05,2]
[348360570,1736466638044,-1160.77464219,9.839e-05,2]
[348360571,1736466638057,-222.37535781,9.839e-05,2]
[348360572,1736466638067,-357.09455087,9.839e-05,2]
[348360573,1736466638133,-669.76544913,9.839e-05,2]
[348360574,1736466638142,-634.81,9.839e-05,2]
[348360575,1736466638151,-2380.45,9.839e-05,2]
[348360576,1736466638161,-1095.07,9.839e-05,2]
[348360577,1736466638170,-1425.43,9.839e-05,2]
[348360578,1736466638180,-702.25,9.839e-05,2]
[348360579,1736466638189,-1033.81,9.839e-05,2]
[348360580,1736466638199,-2489.34,9.839e-05,2]
[348360581,1736466638208,-1101.06,9.839e-05,2]
[348360582,1736466638218,-500.0,9.839e-05,2]
[348360583,1736466638227,-500.0,9.839e-05,2]
[348360584,1736466638237,-518.36,9.839e-05,2]
[348360585,1736466638246,-843.65,9.839e-05,2]
[348360586,1736466638256,-743.32,9.839e-05,2]
[348360587,1736466638266,-4623.89,9.839e-05,2]
[348360588,1736466638275,-997.04,9.839e-05,2]
[348360589,1736466638285,-500.0,9.839e-05,2]
[348360590,1736466638295,-580.61,9.839e-05,2]
[348360591,1736466638304,-1418.61,9.839e-05,2]
[348360592,1736466638314,-1699.88,9.839e-05,2]
[348360593,1736466638323,-3855.31,9.839e-05,2]
[348360594,1736466638333,-500.0,9.839e-05,2]
[348360595,1736466638343,-949.56,9.839e-05,2]
[348360596,1736466638353,-500.0,9.839e-05,2]
[348360597,1736466638363,-1316.23,9.839e-05,2]
[348360598,1736466638372,-1971.39,9.839e-05,2]
[348360599,1736466638381,-893.33,9.839e-05,2]
[348360600,1736466638391,-719.64,9.839e-05,2]
[348360601,1736466638400,-1915.74299903,9.839e-05,2]
[348360602,1736466638412,-130.31700097,9.839e-05,2]
[348360603,1736466638422,-251.79378129,9.839e-05,2]
[348360604,1736466639778,-500.0,9.838e-05,2]
[348360605,1736466639788,-348.06621871,9.839e-05,2]
[348360606,1736466639797,-500.0,9.839e-05,2]
[348360607,1736466639807,-1995.81,9.839e-05,2]
[348360608,1736466639817,-500.0,9.839e-05,2]
[348360609,1736466639827,-1701.27,9.839e-05,2]
[348360610,1736466639837,-500.0,9.839e-05,2]
[348360611,1736466639847,-864.28,9.839e-05,2]
[348360612,1736466639857,-883.63239555,9.839e-05,2]
[348360613,1736466639869,-84.15760445,9.839e-05,2]
[348360614,1736466639879,-500.0,9.839e-05,2]
[348360615,1736466639889,-217.6566147,9.839e-05,2]
[348360616,1736466639901,-1157.46453,9.839e-05,2]
[348360617,1736466639934,-398.62975953,9.839e-05,2]
[348360618,1736466639946,-1086.90909577,9.839e-05,2]
[348360619,1736466639955,-296.87259364,9.839e-05,2]
[348360620,1736466639967,-1080.03740636,9.839e-05,2]
[348360621,1736466639976,-899.98303372,9.839e-05,2]
[348360622,1736466639988,-519.61696628,9.839e-05,2]
[348360623,1736466639998,-603.38303372,9.839e-05,2]
[348360624,1736466640014,-141.49696628,9.839e-05,2]
[348360625,1736466640023,-668.12303372,9.839e-05,2]
[348360626,1736466640035,-66.54696628,9.839e-05,2]
[348360627,1736466640045,-900.34798499,9.839e-05,2]
[348360628,1736466640057,-6746.09201501,9.839e-05,2]
[348360629,1736466640067,-795.0,9.839e-05,2]
[348360630,1736466640077,-1147.59,9.839e-05,2]
[348360631,1736466640086,-1298.68,9.839e-05,2]
[348360632,1736466640097,-500.0,9.839e-05,2]
[348360633,1736466640107,-623.25,9.839e-05,2]
[348360634,1736466640116,-786.6,9.84e-05,2]
[348360635,1736466640125,-1211.39,9.84e-05,2]
[348360636,1736466640135,-743.28,9.84e-05,2]
[348360637,1736466640145,-1307.11,9.84e-05,2]
[348360638,1736466640154,-1000.0,9.84e-05,2]
[348360639,1736466640164,-1006.05,9.84e-05,2]
[348360640,1736466640173,-500.0,9.84e-05,2]
[348360641,1736466640182,-500.0,9.84e-05,2]
[348360642,1736466640192,-551.9,9.84e-05,2]
[348360643,1736466640202,-500.0,9.84e-05,2]
[348360644,1736466640211,-182.51,9.84e-05,2]
[348360645,1736466640221,-500.0,9.84e-05,2]
[348360646,1736466640230,-500.0,9.84e-05,2]
[348360647,1736466640240,-500.0,9.84e-05,2]
[348360648,1736466640250,-500.0,9.84e-05,2]
[348360649,1736466640259,-500.0,9.84e-05,2]
[348360650,1736466640268,-515.03,9.84e-05,2]
[348360651,1736466640278,-500.0,9.84e-05,2]
[348360652,1736466640289,-386.3957491,9.84e-05,2]
[348360653,1736466640299,-500.0,9.84e-05,2]
[348360654,1736466640310,-500.0,9.84e-05,2]
[348360655,1736466640320,-500.0,9.84e-05,2]
[348360656,1736466640330,-500.0,9.84e-05,2]
[348360657,1736466640340,-2995.36,9.84e-05,2]
[348360658,1736466640350,-500.0,9.84e-05,2]
[348360659,1736466640360,-500.0,9.84e-05,2]
[348360660,1736466640369,-500.0,9.84e-05,2]
[348360661,1736466640379,-500.0,9.84e-05,2]
[348360662,1736466640388,-500.0,9.84e-05,2]
[348360663,1736466640397,-423.73554934,9.84e-05,2]
[348360664,1736466640408,-500.0,9.84e-05,2]
[348360665,1736466640419,-500.0,9.84e-05,2]
[348360666,1736466640435,-500.0,9.84e-05,2]
[348360667,1736466640445,-500.0,9.84e-05,2]
[348360668,1736466640454,-500.0,9.84e-05,2]
[348360669,1736466640464,-500.0,9.84e-05,2]
[348360670,1736466640474,-500.0,9.84e-05,2]
[348360671,1736466640484,-500.0,9.84e-05,2]
[348360672,1736466640495,-500.0,9.84e-05,2]
[348360673,1736466640504,-500.0,9.84e-05,2]
[348360674,1736466640514,-500.0,9.84e-05,2]
[348360675,1736466640523,-500.0,9.84e-05,2]
[348360676,1736466640533,-500.0,9.84e-05,2]
[348360677,1736466640543,-500.0,9.84e-05,2]
[348360678,1736466640552,-500.0,9.84e-05,2]
[348360679,1736466640562,-500.0,9.84e-05,2]
[348360680,1736466640572,-500.0,9.84e-05,2]
[348360681,1736466640582,-500.0,9.84e-05,2]
[348360682,1736466640591,-500.0,9.84e-05,2]
[348360683,1736466640602,-500.0,9.84e-05,2]
[348360684,1736466640612,-500.0,9.84e-05,2]
[348360685,1736466640621,-500.0,9.84e-05,2]
[348360686,1736466640632,-500.0,9.84e-05,2]
[348360687,1736466640641,-500.0,9.84e-05,2]
[348360688,1736466640651,-500.0,9.84e-05,2]
[348360689,1736466640660,-500.0,9.84e-05,2]
[348360690,1736466640670,-500.0,9.84e-05,2]
[348360691,1736466640679,-500.0,9.84e-05,2]
[348360692,1736466640689,-500.0,9.84e-05,2]
[348360693,1736466640699,-500.0,9.84e-05,2]
[348360694,1736466640709,-500.0,9.84e-05,2]
[348360695,1736466640719,-500.0,9.84e-05,2]
[348360696,1736466640729,-500.0,9.84e-05,2]
[348360697,1736466640738,-500.0,9.84e-05,2]
[348360698,1736466640749,-500.0,9.84e-05,2]
[348360699,1736466640759,-500.0,9.84e-05,2]
[348360700,1736466640770,-500.0,9.84e-05,2]
[348360701,1736466640780,-500.0,9.84e-05,2]
[348360702,1736466640789,-507.91,9.84e-05,2]
[348360703,1736466640798,-1700.43,9.84e-05,2]
[348360704,1736466640808,-500.0,9.84e-05,2]
[348360705,1736466640818,-500.0,9.84e-05,2]
[348360706,1736466640827,-500.0,9.84e-05,2]
[348360707,1736466640836,-500.0,9.84e-05,2]
[348360708,1736466640845,-552.38,9.84e-05,2]
[348360709,1736466640855,-500.0,9.84e-05,2]
[348360710,1736466640865,-500.0,9.84e-05,2]
[348360711,1736466640876,-500.0,9.84e-05,2]
[348360712,1736466640886,-500.0,9.84e-05,2]
[348360713,1736466640896,-500.0,9.84e-05,2]
[348360714,1736466640906,-500.0,9.84e-05,2]
[348360715,1736466640915,-500.0,9.84e-05,2]
[348360716,1736466640924,-500.0,9.84e-05,2]
[348360717,1736466640934,-500.0,9.84e-05,2]
[348360718,1736466640943,-500.0,9.84e-05,2]
[348360719,1736466640952,-192.68880217,9.84e-05,2]
[348360720,1736466640961,-500.0,9.84e-05,2]
[348360721,1736466640971,-500.0,9.84e-05,2]
[348360722,1736466640981,-500.0,9.84e-05,2]
[348360723,1736466640990,-500.0,9.84e-05,2]
[348360724,1736466640999,-500.0,9.84e-05,2]
[348360725,1736466641008,-627.54,9.84e-05,2]
[348360726,1736466641017,-500.0,9.84e-05,2]
[348360727,1736466641026,-500.0,9.84e-05,2]
[348360728,1736466641035,-500.0,9.84e-05,2]
[348360729,1736466641044,-500.0,9.84e-05,2]
[348360730,1736466641055,-500.0,9.84e-05,2]
[348360731,1736466641064,-500.0,9.84e-05,2]
[348360732,1736466641073,-500.0,9.84e-05,2]
[348360733,1736466641082,-500.0,9.84e-05,2]
[348360734,1736466641092,-500.0,9.84e-05,2]
[348360735,1736466641101,-500.0,9.84e-05,2]
[348360736,1736466641111,-500.0,9.84e-05,2]
[348360737,1736466641120,-500.0,9.84e-05,2]
[348360738,1736466641130,-500.0,9.84e-05,2]
[348360739,1736466641139,-500.0,9.84e-05,2]
[348360740,1736466641148,-500.0,9.84e-05,2]
[348360741,1736466641157,-500.0,9.84e-05,2]
[348360742,1736466641167,-500.0,9.84e-05,2]
[348360743,1736466641178,-500.0,9.84e-05,2]
[348360744,1736466641187,-500.0,9.84e-05,2]
[348360745,1736466641198,-500.0,9.84e-05,2]
[348360746,1736466641209,-500.0,9.84e-05,2]
[348360747,1736466641218,-500.0,9.84e-05,2]
[348360748,1736466641227,-500.0,9.84e-05,2]
[348360749,1736466641236,-500.0,9.84e-05,2]
[348360750,1736466641247,-500.0,9.84e-05,2]
[348360751,1736466641257,-500.0,9.84e-05,2]
[348360752,1736466641269,-500.0,9.84e-05,2]
[348360753,1736466641282,-500.0,9.84e-05,2]
[348360754,1736466641291,-500.0,9.84e-05,2]
[348360755,1736466641301,-500.0,9.84e-05,2]
[348360756,1736466641310,-500.0,9.84e-05,2]
[348360757,1736466641320,-500.0,9.84e-05,2]
[348360758,1736466641331,-500.0,9.84e-05,2]
[348360759,1736466641342,-500.0,9.84e-05,2]
[348360760,1736466641352,-157.71018865,9.84e-05,2]
[348360761,1736466641361,-500.0,9.84e-05,2]
[348360762,1736466641370,-500.0,9.84e-05,2]
[348360763,1736466641379,-500.0,9.84e-05,2]
[348360764,1736466641388,-500.0,9.84e-05,2]
[348360765,1736466641396,-500.0,9.84e-05,2]
[348360766,1736466641407,-500.0,9.84e-05,2]
[348360767,1736466641418,-500.0,9.84e-05,2]
[348360768,1736466641431,-500.0,9.84e-05,2]
[348360769,1736466641440,-500.0,9.84e-05,2]
[348360770,1736466641451,-500.0,9.84e-05,2]
[348360771,1736466641462,-500.0,9.84e-05,2]
[348360772,1736466641474,-500.0,9.84e-05,2]
[348360773,1736466641483,-572.03,9.84e-05,2]
[348360774,1736466641493,-500.0,9.84e-05,2]
[348360775,1736466641505,-500.0,9.84e-05,2]
[348360776,1736466641514,-1948.23,9.84e-05,2]
[348360777,1736466641524,-500.0,9.84e-05,2]
[348360778,1736466641534,-500.0,9.84e-05,2]
[348360779,1736466641544,-500.0,9.84e-05,2]
[348360780,1736466641553,-500.0,9.84e-05,2]
[348360781,1736466641562,-500.0,9.84e-05,2]
[348360782,1736466641571,-500.0,9.84e-05,2]
[348360783,1736466641580,-500.0,9.84e-05,2]
[348360784,1736466641591,-500.0,9.84e-05,2]
[348360785,1736466641601,-500.0,9.84e-05,2]
[348360786,1736466641610,-500.0,9.84e-05,2]
[348360787,1736466641620,-500.0,9.84e-05,2]
[348360788,1736466641629,-500.0,9.84e-05,2]
[348360789,1736466641639,-1410.6,9.84e-05,2]
[348360790,1736466641648,-500.0,9.84e-05,2]
[348360791,1736466641658,-500.0,9.84e-05,2]
[348360792,1736466641668,-500.0,9.84e-05,2]
[348360793,1736466641679,-500.0,9.84e-05,2]
[348360794,1736466641688,-500.0,9.84e-05,2]
[348360795,1736466641698,-500.0,9.84e-05,2]
[348360796,1736466641708,-500.0,9.84e-05,2]
[348360797,1736466641718,-500.0,9.84e-05,2]
[348360798,1736466641728,-500.0,9.84e-05,2]
[348360799,1736466641739,-500.0,9.84e-05,2]
[348360800,1736466641750,-500.0,9.84e-05,2]
[348360801,1736466641759,-500.0,9.84e-05,2]
[348360802,1736466641769,-500.0,9.84e-05,2]
[348360803,1736466641779,-500.0,9.84e-05,2]
[348360804,1736466641791,-500.0,9.84e-05,2]
[348360805,1736466641801,-500.0,9.84e-05,2]
[348360806,1736466641811,-601.05,9.84e-05,2]
[348360807,1736466641822,-500.0,9.84e-05,2]
[348360808,1736466641831,-500.0,9.84e-05,2]
[348360809,1736466641843,-500.0,9.84e-05,2]
[348360810,1736466641853,-1851.47,9.84e-05,2]
[348360811,1736466641863,-250.40487931,9.84e-05,2]
[348360812,1736466641872,-500.0,9.84e-05,2]
[348360813,1736466641881,-500.0,9.84e-05,2]
[348360814,1736466641890,-500.0,9.84e-05,2]
[348360815,1736466641899,-500.0,9.84e-05,2]
[348360816,1736466641908,-500.0,9.84e-05,2]
[348360817,1736466641917,-500.0,9.84e-05,2]
[348360818,1736466641927,-500.0,9.84e-05,2]
[348360819,1736466641936,-500.0,9.84e-05,2]
[348360820,1736466641945,-500.0,9.84e-05,2]
[348360821,1736466641954,-579.9,9.84e-05,2]
[348360822,1736466641963,-500.0,9.84e-05,2]
[348360823,1736466641972,-500.0,9.84e-05,2]
[348360824,1736466641981,-500.0,9.84e-05,2]
[348360825,1736466641990,-500.0,9.84e-05,2]
[348360826,1736466641999,-533.23,9.84e-05,2]
[348360827,1736466642008,-500.0,9.84e-05,2]
[348360828,1736466642017,-651.71,9.84e-05,2]
[348360829,1736466642027,-500.0,9.84e-05,2]
[348360830,1736466642036,-500.0,9.84e-05,2]
[348360831,1736466642045,-1340.17,9.84e-05,2]
[348360832,1736466642054,-500.0,9.84e-05,2]
[348360833,1736466642063,-500.0,9.84e-05,2]
[348360834,1736466642073,-500.0,9.84e-05,2]
[348360835,1736466642082,-500.0,9.84e-05,2]
[348360836,1736466642091,-500.0,9.84e-05,2]
[348360837,1736466642100,-500.0,9.84e-05,2]
[348360838,1736466642110,-500.0,9.84e-05,2]
[348360839,1736466642119,-500.0,9.84e-05,2]
[348360840,1736466642128,-500.0,9.84e-05,2]
[348360841,1736466642137,-500.0,9.84e-05,2]
[348360842,1736466642146,-601.56,9.84e-05,2]
[348360843,1736466642155,-500.0,9.84e-05,2]
[348360844,1736466642164,-748.2,9.84e-05,2]
[348360845,1736466642173,-500.0,9.84e-05,2]
[348360846,1736466642182,-722.3,9.84e-05,2]
[348360847,1736466642191,-500.0,9.84e-05,2]
[348360848,1736466642200,-500.0,9.84e-05,2]
[348360849,1736466642209,-500.0,9.84e-05,2]
[348360850,1736466642218,-500.0,9.84e-05,2]
[348360851,1736466642228,-500.0,9.84e-05,2]
[348360852,1736466642238,-500.0,9.84e-05,2]
[348360853,1736466642247,-500.0,9.84e-05,2]
[348360854,1736466642256,-500.0,9.84e-05,2]
[348360855,1736466642266,-555.85944571,9.84e-05,2]
[348360856,1736466642275,-500.0,9.84e-05,2]
[348360857,1736466642284,-986.18,9.84e-05,2]
[348360858,1736466642293,-2967.62,9.84e-05,2]
[348360859,1736466642302,-500.0,9.84e-05,2]
[348360860,1736466642311,-500.0,9.84e-05,2]
[348360861,1736466642320,-500.0,9.84e-05,2]
[348360862,1736466642330,-500.0,9.84e-05,2]
[348360863,1736466642339,-500.0,9.84e-05,2]
[348360864,1736466642349,-500.0,9.84e-05,2]
[348360865,1736466642358,-500.0,9.84e-05,2]
[348360866,1736466642367,-500.64,9.84e-05,2]
[348360867,1736466642376,-500.0,9.84e-05,2]
[348360868,1736466642385,-600.13,9.84e-05,2]
[348360869,1736466642394,-505.07,9.84e-05,2]
[348360871,1736466642403,-500.0,9.84e-05,2]
[348360873,1736466642412,-719.38,9.84e-05,2]
[348360874,1736466642422,-500.0,9.84e-05,2]
[348360875,1736466642435,-500.0,9.84e-05,2]
[348360876,1736466642444,-500.0,9.84e-05,2]
[348360877,1736466642453,-735.89,9.84e-05,2]
[348360878,1736466642463,-1664.3,9.84e-05,2]
[348360880,1736466642473,-500.0,9.84e-05,2]
[348360882,1736466642483,-500.0,9.84e-05,2]
[348360884,1736466642492,-500.0,9.84e-05,2]
[348360886,1736466642502,-500.0,9.84e-05,2]
[348360887,1736466642512,-501.8,9.84e-05,2]
[348360888,1736466642522,-500.0,9.84e-05,2]
[348360889,1736466642531,-500.0,9.84e-05,2]
[348360890,1736466642540,-827.22,9.84e-05,2]
[348360891,1736466642549,-500.0,9.84e-05,2]
[348360892,1736466642558,-500.0,9.84e-05,2]
[348360893,1736466642568,-500.0,9.84e-05,2]
[348360894,1736466642577,-500.0,9.84e-05,2]
[348360895,1736466642586,-500.0,9.84e-05,2]
[348360896,1736466642595,-500.0,9.84e-05,2]
[348360897,1736466642604,-500.0,9.84e-05,2]
[348360898,1736466642614,-500.0,9.84e-05,2]
[348360899,1736466642623,-500.0,9.84e-05,2]
[348360900,1736466642632,-500.0,9.84e-05,2]
[348360901,1736466642641,-500.0,9.84e-05,2]
[348360902,1736466642650,-550.49,9.84e-05,2]
[348360903,1736466642659,-500.0,9.84e-05,2]
[348360904,1736466642669,-5794.47,9.84e-05,2]
[348360905,1736466642678,-500.0,9.84e-05,2]
[348360906,1736466642687,-500.0,9.84e-05,2]
[348360908,1736466642696,-500.0,9.84e-05,2]
[348360909,1736466642705,-528.19,9.84e-05,2]
[348360910,1736466642715,-500.0,9.84e-05,2]
[348360911,1736466642724,-500.0,9.84e-05,2]
[348360912,1736466642733,-500.0,9.84e-05,2]
[348360913,1736466642742,-694.3,9.84e-05,2]
[348360914,1736466642751,-500.0,9.84e-05,2]
[348360915,1736466642760,-642.39,9.84e-05,2]
[348360916,1736466642770,-500.0,9.84e-05,2]
[348360917,1736466642779,-500.0,9.84e-05,2]
[348360918,1736466642788,-500.0,9.84e-05,2]
[348360919,1736466642797,-500.0,9.84e-05,2]
[348360920,1736466642807,-525.15111446,9.84e-05,2]
[348360921,1736466642816,-500.0,9.84e-05,2]
[348360922,1736466642825,-500.0,9.84e-05,2]
[348360923,1736466642834,-525.92,9.84e-05,2]
[348360924,1736466642843,-500.0,9.84e-05,2]
[348360925,1736466642853,-500.0,9.84e-05,2]
[348360926,1736466642863,-500.0,9.84e-05,2]
[348360927,1736466642872,-47.08519508,9.84e-05,2]
[348360933,1736466644050,-586.07,9.839e-05,2]
[348360934,1736466644059,-3718.58480492,9.84e-05,2]
[348360935,1736466644069,-500.0,9.84e-05,2]
[348360936,1736466644078,-500.0,9.84e-05,2]
[348360937,1736466644087,-500.0,9.84e-05,2]
[348360938,1736466644097,-633.84,9.84e-05,2]
[348360939,1736466644107,-500.0,9.84e-05,2]
[348360940,1736466644116,-500.0,9.84e-05,2]
[348360941,1736466644125,-500.0,9.84e-05,2]
[348360942,1736466644137,-500.0,9.84e-05,2]
[348360943,1736466644147,-500.0,9.84e-05,2]
[348360944,1736466644157,-521.03,9.84e-05,2]
[348360945,1736466644168,-283.26479508,9.84e-05,2]
[348360946,1736466644197,-500.0,9.838e-05,2]
[348360947,1736466644209,-216.73520492,9.84e-05,2]
[348360948,1736466644220,-642.92,9.84e-05,2]
[348360949,1736466644231,-500.0,9.84e-05,2]
[348360950,1736466644242,-500.0,9.84e-05,2]
[348360951,1736466644251,-500.0,9.84e-05,2]
[348360952,1736466644262,-500.0,9.84e-05,2]
[348360953,1736466644272,-500.0,9.84e-05,2]
[348360954,1736466644282,-500.0,9.84e-05,2]
[348360955,1736466644291,-546.02,9.84e-05,2]
[348360956,1736466644300,-500.0,9.84e-05,2]
[348360957,1736466644310,-500.0,9.84e-05,2]
[348360958,1736466644318,-319.34,9.84e-05,2]
[348360959,1736466644327,-650.32,9.84e-05,2]
[348360960,1736466644336,-1630.9,9.84e-05,2]
[348360961,1736466644345,-827.4,9.84e-05,2]
[348360962,1736466644358,-500.0,9.84e-05,2]
[348360963,1736466644367,-505.87875668,9.84e-05,2]
[348360964,1736466644377,-500.0,9.84e-05,2]
[348360965,1736466644387,-960.6,9.84e-05,2]
[348360966,1736466644396,-602.74257638,9.84e-05,2]
[348360967,1736466644406,-500.0,9.84e-05,2]
[348360968,1736466644416,-500.0,9.84e-05,2]
[348360969,1736466644428,-528.68,9.84e-05,2]
[348360970,1736466644439,-500.0,9.84e-05,2]
[348360971,1736466644450,-500.0,9.84e-05,2]
[348360972,1736466644462,-500.0,9.84e-05,2]
[348360973,1736466644472,-500.0,9.84e-05,2]
[348360974,1736466644482,-500.0,9.84e-05,2]
[348360975,1736466644492,-500.0,9.84e-05,2]
[348360976,1736466644503,-373.12742326,9.84e-05,2]
[348360977,1736466644516,-126.87257674,9.84e-05,2]
[348360978,1736466644525,-179.12742326,9.84e-05,2]
[348360979,1736466644537,-320.87257674,9.84e-05,2]
[348360980,1736466644547,-194.71413545,9.84e-05,2]
[348360981,1736466644556,-500.0,9.84e-05,2]
[348360982,1736466644566,-500.0,9.84e-05,2]
[348360983,1736466644575,-4103.12501223,9.84e-05,2]
[348360984,1736466645607,-1739.903,9.739e-05,2]
[348360985,1736466645617,-500.0,9.838e-05,2]
[348360986,1736466645627,-156.244889,9.839e-05,2]
[348360987,1736466645637,-322.23498777,9.84e-05,2]
[348360989,1736466645647,-500.0,9.84e-05,2]
[348360990,1736466645657,-500.0,9.84e-05,2]
[348360991,1736466645666,-549.33,9.84e-05,2]
[348360992,1736466645676,-500.0,9.84e-05,2]
[348360993,1736466645686,-500.0,9.84e-05,2]
[348360994,1736466645695,-500.0,9.84e-05,2]
[348360995,1736466645705,-500.0,9.84e-05,2]
[348360996,1736466645715,-500.0,9.84e-05,2]
[348360997,1736466645724,-500.0,9.84e-05,2]
[348360998,1736466645734,-500.0,9.84e-05,2]
[348360999,1736466645743,-500.0,9.84e-05,2]
[348361000,1736466645752,-1030.2,9.84e-05,2]
[348361001,1736466645762,-543.77,9.84e-05,2]
[348361002,1736466645771,-500.0,9.84e-05,2]
[348361003,1736466645781,-500.0,9.84e-05,2]
[348361004,1736466645790,-500.0,9.84e-05,2]
[348361005,1736466645799,-980.25,9.84e-05,2]
[348361006,1736466645808,-541.76325889,9.84e-05,2]
[348361007,1736466645818,-500.0,9.84e-05,2]
[348361008,1736466645827,-500.0,9.84e-05,2]
[348361009,1736466645836,-500.0,9.84e-05,2]
[348361010,1736466645846,-500.0,9.84e-05,2]
[348361011,1736466645856,-500.0,9.84e-05,2]
[348361012,1736466645866,-1226.77,9.84e-05,2]
[348361013,1736466645875,-500.0,9.84e-05,2]
[348361014,1736466645885,-278.80508513,9.84e-05,2]
[348361015,1736466645894,-1509.15,9.84e-05,2]
[348361016,1736466645903,-150.0,9.84e-05,2]
[348361017,1736466645912,-500.0,9.84e-05,2]
[348361018,1736466645922,-500.0,9.84e-05,2]
[348361019,1736466645932,-500.0,9.84e-05,2]
[348361020,1736466645942,-500.0,9.84e-05,2]
[348361021,1736466645951,-637.21,9.84e-05,2]
[348361022,1736466645962,-500.0,9.84e-05,2]
[348361023,1736466645971,-500.0,9.84e-05,2]
[348361024,1736466645981,-500.0,9.84e-05,2]
[348361025,1736466645991,-500.0,9.84e-05,2]
[348361026,1736466646000,-500.0,9.84e-05,2]
[348361027,1736466646010,-500.0,9.84e-05,2]
[348361028,1736466646019,-692.43,9.84e-05,2]
[348361029,1736466646029,-527.52,9.84e-05,2]
[348361030,1736466646039,-500.0,9.84e-05,2]
[348361031,1736466646049,-500.0,9.84e-05,2]
[348361032,1736466646058,-630.05,9.84e-05,2]
[348361033,1736466646068,-500.0,9.84e-05,2]
[348361034,1736466646077,-500.0,9.84e-05,2]
[348361035,1736466646086,-1093.15,9.84e-05,2]
[348361036,1736466646095,-949.48,9.84e-05,2]
[348361037,1736466646107,-500.0,9.84e-05,2]
[348361038,1736466646117,-500.0,9.84e-05,2]
[348361039,1736466646126,-500.0,9.84e-05,2]
[348361040,1736466646136,-834.64,9.84e-05,2]
[348361041,1736466646145,-500.0,9.84e-05,2]
[348361042,1736466646155,-563.67,9.84e-05,2]
[348361043,1736466646165,-500.0,9.84e-05,2]
[348361044,1736466646174,-1369.64,9.84e-05,2]
[348361045,1736466646184,-500.0,9.84e-05,2]
[348361046,1736466646193,-500.0,9.84e-05,2]
[348361047,1736466646203,-543.42,9.84e-05,2]
[348361048,1736466646212,-500.0,9.84e-05,2]
[348361049,1736466646221,-542.65,9.84e-05,2]
[348361050,1736466646230,-1859.14,9.84e-05,2]
[348361051,1736466646239,-1095.96,9.84e-05,2]
[348361052,1736466646248,-1840.33,9.84e-05,2]
[348361053,1736466646257,-2568.13,9.84e-05,2]
[348361054,1736466646266,-590.98,9.84e-05,2]
[348361055,1736466646275,-500.0,9.84e-05,2]
[348361056,1736466646283,-500.0,9.84e-05,2]
[348361057,1736466646293,-500.0,9.84e-05,2]
[348361058,1736466646302,-500.0,9.841e-05,2]
[348361059,1736466646311,-199.36133816,9.841e-05,2]
[348361060,1736466646320,-500.0,9.841e-05,2]
[348361061,1736466646330,-500.0,9.841e-05,2]